[Event "Late-Titled-Tuesday-Blitz-January-16-2024"]
[Site "Chess.com"]
[Date "2024.01.16"]
[Round "7"]
[White "imdarealist"]
[Black "The_Straightforward_Rook"]
[Result "1/2-1/2"]
[WhiteElo "2300"]
[BlackElo "2467"]
[TimeControl "180+1"]
[EndTime "15:15:56 PST"]
[Termination "Game drawn by repetition"]

1. d4 {[%clk 0:02:59.8]} 1... d5 {[%clk 0:03:00.3]} 2. Bf4 {[%clk 0:02:59.9]}
2... Nf6 {[%clk 0:02:59.6]} 3. e3 {[%clk 0:03:00.4]} 3... c6 {[%clk 0:02:59.3]}
4. c4 {[%clk 0:03:00]} 4... e6 {[%clk 0:02:53.5]} 5. Nc3 {[%clk 0:02:59.5]} 5...
Bd6 {[%clk 0:02:54]} 6. Bg3 {[%clk 0:02:59.2]} 6... O-O {[%clk 0:02:53.7]} 7.
Nf3 {[%clk 0:02:59.7]} 7... Re8 {[%clk 0:02:52.2]} 8. Ne5 {[%clk 0:02:59.3]}
8... Qe7 {[%clk 0:02:42.9]} 9. c5 {[%clk 0:02:53.4]} 9... Bxe5 {[%clk
0:02:40.3]} 10. Bxe5 {[%clk 0:02:53]} 10... Nbd7 {[%clk 0:02:40.3]} 11. Bd6
{[%clk 0:02:52.9]} 11... Qd8 {[%clk 0:02:39.8]} 12. f4 {[%clk 0:02:52]} 12...
Ne4 {[%clk 0:02:36.7]} 13. Nxe4 {[%clk 0:02:51.2]} 13... dxe4 {[%clk 0:02:37.6]}
14. Bc4 {[%clk 0:02:40.1]} 14... b5 {[%clk 0:02:35.9]} 15. Bb3 {[%clk
0:02:29.7]} 15... a5 {[%clk 0:02:31.9]} 16. a4 {[%clk 0:02:28.9]} 16... Ba6
{[%clk 0:02:29.9]} 17. axb5 {[%clk 0:02:27.4]} 17... Bxb5 {[%clk 0:02:29.6]} 18.
Ba4 {[%clk 0:02:27.3]} 18... Nf6 {[%clk 0:02:10.7]} 19. Bxb5 {[%clk 0:02:23.6]}
19... cxb5 {[%clk 0:02:11.6]} 20. Qc2 {[%clk 0:02:03.5]} 20... b4 {[%clk
0:02:00.8]} 21. O-O {[%clk 0:01:59.3]} 21... Qd7 {[%clk 0:01:56.6]} 22. Be5
{[%clk 0:01:47]} 22... Qc6 {[%clk 0:01:49.2]} 23. Bxf6 {[%clk 0:01:39.7]} 23...
gxf6 {[%clk 0:01:50.1]} 24. Qe2 {[%clk 0:01:33.9]} 24... Kh8 {[%clk 0:01:49.3]}
25. Qh5 {[%clk 0:01:32.4]} 25... Qb7 {[%clk 0:01:42.4]} 26. Qh4 {[%clk 0:01:13]}
26... Qe7 {[%clk 0:01:40.4]} 27. f5 {[%clk 0:01:07.3]} 27... e5 {[%clk
0:01:37.8]} 28. d5 {[%clk 0:01:07]} 28... Qxc5 {[%clk 0:01:23.9]} 29. Qxf6+
{[%clk 0:01:06.6]} 29... Kg8 {[%clk 0:01:24.5]} 30. Qg5+ {[%clk 0:01:02.9]}
30... Kh8 {[%clk 0:01:23.5]} 31. Qf6+ {[%clk 0:00:30]} 31... Kg8 {[%clk
0:01:23.3]} 32. Qg5+ {[%clk 0:00:30]} 32... Kh8 {[%clk 0:01:22.8]} 33. Qf6+
{[%clk 0:00:29.9]} 1/2-1/2

[Event "Late-Titled-Tuesday-Blitz-January-16-2024"]
[Site "Chess.com"]
[Date "2024.01.16"]
[Round "7"]
[White "GothamChess"]
[Black "TigrVShlyape"]
[Result "1/2-1/2"]
[WhiteElo "2760"]
[BlackElo "2941"]
[TimeControl "180+1"]
[EndTime "15:16:03 PST"]
[Termination "Game drawn by repetition"]

1. e4 {[%clk 0:03:00.9]} 1... c5 {[%clk 0:02:59]} 2. Nc3 {[%clk 0:02:58.6]} 2...
e6 {[%clk 0:02:58.3]} 3. d4 {[%clk 0:02:58.4]} 3... cxd4 {[%clk 0:02:57.3]} 4.
Qxd4 {[%clk 0:02:59.3]} 4... a6 {[%clk 0:02:52.9]} 5. Bf4 {[%clk 0:02:54.4]}
5... Nc6 {[%clk 0:02:50.7]} 6. Qd3 {[%clk 0:02:54.7]} 6... Nge7 {[%clk
0:02:46.5]} 7. O-O-O {[%clk 0:02:50.3]} 7... Ng6 {[%clk 0:02:46.1]} 8. Bg3
{[%clk 0:02:46.6]} 8... h5 {[%clk 0:02:40.6]} 9. h4 {[%clk 0:02:33.8]} 9... b5
{[%clk 0:02:30.1]} 10. Nd5 {[%clk 0:02:21.5]} 10... exd5 {[%clk 0:02:00.2]} 11.
exd5 {[%clk 0:02:21.7]} 11... Nce5 {[%clk 0:02:00]} 12. Re1 {[%clk 0:01:58]}
12... d6 {[%clk 0:01:58.1]} 13. f4 {[%clk 0:01:52.7]} 13... Be7 {[%clk
0:01:52.6]} 14. fxe5 {[%clk 0:01:52.5]} 14... Nxe5 {[%clk 0:01:52.1]} 15. Bxe5
{[%clk 0:01:38.6]} 15... dxe5 {[%clk 0:01:52]} 16. Rxe5 {[%clk 0:01:36.1]} 16...
Qd6 {[%clk 0:01:50.1]} 17. Qe3 {[%clk 0:01:24.1]} 17... Kf8 {[%clk 0:01:32.3]}
18. Nf3 {[%clk 0:01:20.8]} 18... Bg4 {[%clk 0:01:26.7]} 19. Bd3 {[%clk
0:01:12.9]} 19... Bf6 {[%clk 0:01:25.8]} 20. Qf4 {[%clk 0:00:50.8]} 20... Rd8
{[%clk 0:01:19.6]} 21. Rhe1 {[%clk 0:00:29.2]} 21... Bxe5 {[%clk 0:01:03.5]} 22.
Nxe5 {[%clk 0:00:29]} 22... Qh6 {[%clk 0:01:01.2]} 23. Ng6+ {[%clk 0:00:23.2]}
23... Kg8 {[%clk 0:01:00.8]} 24. Ne7+ {[%clk 0:00:20.2]} 24... Kf8 {[%clk
0:01:00.9]} 25. Ng6+ {[%clk 0:00:19.4]} 25... Kg8 {[%clk 0:01:01.3]} 26. Ne7+
{[%clk 0:00:15.5]} 26... Kf8 {[%clk 0:01:01.6]} 27. Ng6+ {[%clk 0:00:15.8]}
1/2-1/2

[Event "Late-Titled-Tuesday-Blitz-January-16-2024"]
[Site "Chess.com"]
[Date "2024.01.16"]
[Round "7"]
[White "FontVella8"]
[Black "MrChessSponge"]
[Result "1-0"]
[WhiteElo "2761"]
[BlackElo "2550"]
[TimeControl "180+1"]
[EndTime "15:16:04 PST"]
[Termination "FontVella8 won by resignation"]

1. e4 {[%clk 0:02:56.1]} 1... c5 {[%clk 0:02:48.4]} 2. Nf3 {[%clk 0:02:56.1]}
2... e6 {[%clk 0:02:46.5]} 3. d4 {[%clk 0:02:56.2]} 3... cxd4 {[%clk 0:02:47.3]}
4. Nxd4 {[%clk 0:02:57]} 4... Nc6 {[%clk 0:02:47.3]} 5. Nc3 {[%clk 0:02:57.7]}
5... Qc7 {[%clk 0:02:46.7]} 6. Be3 {[%clk 0:02:58]} 6... a6 {[%clk 0:02:45.7]}
7. a3 {[%clk 0:02:58.2]} 7... Nf6 {[%clk 0:02:43.6]} 8. f4 {[%clk 0:02:57.8]}
8... b5 {[%clk 0:02:42.9]} 9. e5 {[%clk 0:02:55.1]} 9... Ng8 {[%clk 0:02:31.5]}
10. Be2 {[%clk 0:02:46.8]} 10... Bb7 {[%clk 0:02:31.3]} 11. O-O {[%clk
0:02:46.3]} 11... Nxd4 {[%clk 0:02:31.3]} 12. Qxd4 {[%clk 0:02:45.8]} 12... Rc8
{[%clk 0:02:29.2]} 13. Bf3 {[%clk 0:02:31.4]} 13... Ne7 {[%clk 0:02:12]} 14.
Bxb7 {[%clk 0:02:22.8]} 14... Qxb7 {[%clk 0:02:07.7]} 15. Qd3 {[%clk 0:02:22.4]}
15... Nf5 {[%clk 0:02:05.6]} 16. Bf2 {[%clk 0:02:20.1]} 16... d5 {[%clk
0:02:03.3]} 17. g4 {[%clk 0:02:12.5]} 17... Nh6 {[%clk 0:01:49.8]} 18. h3 {[%clk
0:02:12.3]} 18... Rc4 {[%clk 0:01:41.9]} 19. Ne2 {[%clk 0:02:02.9]} 19... Be7
{[%clk 0:01:33.8]} 20. Nd4 {[%clk 0:01:53.7]} 20... O-O {[%clk 0:01:26.9]} 21.
b3 {[%clk 0:01:52.7]} 21... Rc7 {[%clk 0:01:22.5]} 22. f5 {[%clk 0:01:52.9]}
22... Qc8 {[%clk 0:01:18.4]} 23. Be3 {[%clk 0:01:49.3]} 23... Rc3 {[%clk
0:01:17.1]} 24. Qd2 {[%clk 0:01:49.6]} 24... Rxe3 {[%clk 0:00:37.5]} 25. Qxe3
{[%clk 0:01:47.6]} 25... Bc5 {[%clk 0:00:30.3]} 26. f6 {[%clk 0:01:43.9]} 26...
Bxd4 {[%clk 0:00:26.5]} 27. Qxd4 {[%clk 0:01:42.8]} 27... Qxc2 {[%clk
0:00:26.1]} 28. Qf4 {[%clk 0:01:38.1]} 28... Qxb3 {[%clk 0:00:20]} 29. Rf3
{[%clk 0:01:35.9]} 29... Qc2 {[%clk 0:00:19.6]} 30. fxg7 {[%clk 0:01:32.9]}
30... Rc8 {[%clk 0:00:12.7]} 31. Qxh6 {[%clk 0:01:30.9]} 31... Qe2 {[%clk
0:00:10.1]} 32. Qf4 {[%clk 0:01:28.7]} 1-0

[Event "Late-Titled-Tuesday-Blitz-January-16-2024"]
[Site "Chess.com"]
[Date "2024.01.16"]
[Round "7"]
[White "Bala-Afiada"]
[Black "GAusal"]
[Result "1-0"]
[WhiteElo "2056"]
[BlackElo "2256"]
[TimeControl "180+1"]
[EndTime "15:16:07 PST"]
[Termination "Bala-Afiada won by resignation"]

1. d4 {[%clk 0:03:00.9]} 1... d5 {[%clk 0:02:54.7]} 2. c4 {[%clk 0:03:00.7]}
2... c6 {[%clk 0:02:55.1]} 3. Nf3 {[%clk 0:03:00.4]} 3... dxc4 {[%clk
0:02:54.9]} 4. g3 {[%clk 0:02:58.7]} 4... b5 {[%clk 0:02:53.9]} 5. Bg2 {[%clk
0:02:59.2]} 5... Bb7 {[%clk 0:02:54.1]} 6. O-O {[%clk 0:02:59]} 6... a6 {[%clk
0:02:54.4]} 7. a4 {[%clk 0:02:56.1]} 7... e6 {[%clk 0:02:54.1]} 8. Ne5 {[%clk
0:02:56.3]} 8... Nf6 {[%clk 0:02:52.9]} 9. axb5 {[%clk 0:02:55.7]} 9... axb5
{[%clk 0:02:51]} 10. Rxa8 {[%clk 0:02:56.6]} 10... Bxa8 {[%clk 0:02:51]} 11. Nc3
{[%clk 0:02:57.1]} 11... Qb6 {[%clk 0:02:46.9]} 12. Bg5 {[%clk 0:02:54.3]} 12...
Be7 {[%clk 0:02:46.1]} 13. Ne4 {[%clk 0:02:46]} 13... O-O {[%clk 0:02:33.9]} 14.
Nxf6+ {[%clk 0:02:43.5]} 14... Bxf6 {[%clk 0:02:33.9]} 15. Bxf6 {[%clk
0:02:42.9]} 15... gxf6 {[%clk 0:02:34.2]} 16. Ng4 {[%clk 0:02:42.5]} 16... Nd7
{[%clk 0:02:30.4]} 17. Qd2 {[%clk 0:02:38.2]} 17... c5 {[%clk 0:02:14.1]} 18.
Bxa8 {[%clk 0:02:34.6]} 18... Rxa8 {[%clk 0:02:12.3]} 19. Qh6 {[%clk 0:02:34]}
19... cxd4 {[%clk 0:01:54.1]} 20. Nxf6+ {[%clk 0:02:27.1]} 20... Nxf6 {[%clk
0:01:53]} 21. Qg5+ {[%clk 0:02:19.5]} 21... Kf8 {[%clk 0:01:46]} 22. Qxf6 {[%clk
0:02:18.2]} 22... Qd8 {[%clk 0:01:44.8]} 23. Qh8+ {[%clk 0:02:08.1]} 23... Ke7
{[%clk 0:01:43.1]} 24. Qxh7 {[%clk 0:02:08.2]} 24... Qh8 {[%clk 0:01:30.3]} 25.
Qe4 {[%clk 0:01:54.4]} 25... Rb8 {[%clk 0:01:00.7]} 26. Rd1 {[%clk 0:01:49.7]}
26... e5 {[%clk 0:00:58.3]} 27. Rxd4 {[%clk 0:01:46.3]} 27... f6 {[%clk
0:00:54]} 28. Rd1 {[%clk 0:01:32.5]} 28... Qc8 {[%clk 0:00:46.4]} 29. Qd5 {[%clk
0:01:24.4]} 29... Qe6 {[%clk 0:00:41]} 30. Qc5+ {[%clk 0:01:19.9]} 30... Kf7
{[%clk 0:00:38.9]} 31. Qc7+ {[%clk 0:01:18.5]} 31... Kg6 {[%clk 0:00:34.7]} 32.
Qxb8 {[%clk 0:01:17.1]} 32... Qc6 {[%clk 0:00:31.4]} 33. Qg8+ {[%clk 0:01:16.5]}
33... Kf5 {[%clk 0:00:30.8]} 1-0

[Event "Late-Titled-Tuesday-Blitz-January-16-2024"]
[Site "Chess.com"]
[Date "2024.01.16"]
[Round "7"]
[White "Zampronha1971"]
[Black "dorpato"]
[Result "1-0"]
[WhiteElo "2309"]
[BlackElo "2130"]
[TimeControl "180+1"]
[EndTime "15:16:08 PST"]
[Termination "Zampronha1971 won by resignation"]

1. e4 {[%clk 0:03:00.9]} 1... c5 {[%clk 0:02:59.1]} 2. Nf3 {[%clk 0:03:00.8]}
2... d6 {[%clk 0:02:55.9]} 3. d4 {[%clk 0:03:01.3]} 3... cxd4 {[%clk 0:02:56.8]}
4. Nxd4 {[%clk 0:03:01.5]} 4... g6 {[%clk 0:02:52.1]} 5. Nc3 {[%clk 0:03:01.3]}
5... Bg7 {[%clk 0:02:52.3]} 6. Be3 {[%clk 0:03:01.6]} 6... Nf6 {[%clk
0:02:51.7]} 7. f3 {[%clk 0:02:58.6]} 7... O-O {[%clk 0:02:45.4]} 8. Qd2 {[%clk
0:02:58.9]} 8... Nc6 {[%clk 0:02:44.1]} 9. Bc4 {[%clk 0:02:58.6]} 9... Nxd4
{[%clk 0:02:40.5]} 10. Bxd4 {[%clk 0:02:58]} 10... a6 {[%clk 0:02:40.6]} 11. a4
{[%clk 0:02:52.3]} 11... Bd7 {[%clk 0:02:29]} 12. O-O {[%clk 0:02:51]} 12... Bc6
{[%clk 0:02:18.3]} 13. a5 {[%clk 0:02:50.7]} 13... Qd7 {[%clk 0:02:14.7]} 14.
Bxf6 {[%clk 0:02:44.7]} 14... Bxf6 {[%clk 0:02:12.9]} 15. Rfd1 {[%clk
0:02:38.1]} 15... Rac8 {[%clk 0:02:06.2]} 16. Kh1 {[%clk 0:02:38]} 16... Kg7
{[%clk 0:01:59.2]} 17. Ra3 {[%clk 0:02:37.2]} 17... Bxe4 {[%clk 0:01:45.9]} 18.
Nxe4 {[%clk 0:02:24.6]} 18... Rxc4 {[%clk 0:01:45.2]} 19. Nxf6 {[%clk
0:02:24.6]} 19... Kxf6 {[%clk 0:01:42.4]} 20. Qh6 {[%clk 0:02:23]} 20... Qf5
{[%clk 0:01:34.4]} 21. Qxf8 {[%clk 0:02:21.7]} 21... Qxc2 {[%clk 0:01:27.7]} 22.
Re1 {[%clk 0:02:11.6]} 22... Qe2 {[%clk 0:01:16]} 23. Raa1 {[%clk 0:02:07.2]}
23... Qxb2 {[%clk 0:01:06.9]} 24. Qxe7+ {[%clk 0:02:01.8]} 24... Kg7 {[%clk
0:01:06.9]} 25. Qxd6 {[%clk 0:02:01.6]} 25... Qf2 {[%clk 0:00:47.6]} 26. Qe5+
{[%clk 0:01:57.7]} 26... Kg8 {[%clk 0:00:45.1]} 27. Qe2 {[%clk 0:01:58.2]} 27...
Qc5 {[%clk 0:00:43.8]} 28. Qe8+ {[%clk 0:01:52.2]} 28... Kg7 {[%clk 0:00:43.2]}
29. Qe5+ {[%clk 0:01:52.5]} 29... f6 {[%clk 0:00:40.6]} 30. Qxc5 {[%clk
0:01:51]} 30... Rxc5 {[%clk 0:00:41.5]} 31. Re7+ {[%clk 0:01:50.7]} 31... Kh6
{[%clk 0:00:41.5]} 32. Rxb7 {[%clk 0:01:51.6]} 32... Kg5 {[%clk 0:00:39.7]} 33.
Rb6 {[%clk 0:01:52.2]} 33... h5 {[%clk 0:00:37.4]} 34. Rxa6 {[%clk 0:01:52.3]}
34... h4 {[%clk 0:00:38]} 35. Ra8 {[%clk 0:01:50.8]} 35... Kf4 {[%clk
0:00:36.7]} 36. Re8 {[%clk 0:01:50.2]} 36... g5 {[%clk 0:00:36.4]} 37. Re4+
{[%clk 0:01:47.1]} 37... Kf5 {[%clk 0:00:36.2]} 38. h3 {[%clk 0:01:45.6]} 38...
Kg6 {[%clk 0:00:32.4]} 39. a6 {[%clk 0:01:45]} 39... f5 {[%clk 0:00:32.7]} 40.
Rxh4 {[%clk 0:01:37.1]} 40... gxh4 {[%clk 0:00:30.3]} 41. a7 {[%clk 0:01:37.4]}
41... f4 {[%clk 0:00:29.5]} 42. a8=Q {[%clk 0:01:36.9]} 42... Kg5 {[%clk
0:00:29.8]} 43. Qa5 {[%clk 0:01:35.9]} 1-0

[Event "Late-Titled-Tuesday-Blitz-January-16-2024"]
[Site "Chess.com"]
[Date "2024.01.16"]
[Round "7"]
[White "PNEPaul"]
[Black "Rdeux42"]
[Result "0-1"]
[WhiteElo "1914"]
[BlackElo "2457"]
[TimeControl "180+1"]
[EndTime "15:16:10 PST"]
[Termination "Rdeux42 won by resignation"]

1. e4 {[%clk 0:02:46.8]} 1... c6 {[%clk 0:02:56]} 2. d4 {[%clk 0:02:46]} 2... d5
{[%clk 0:02:55.1]} 3. exd5 {[%clk 0:02:46.2]} 3... cxd5 {[%clk 0:02:55.1]} 4. c4
{[%clk 0:02:46.4]} 4... Nf6 {[%clk 0:02:53.7]} 5. Nc3 {[%clk 0:02:46.4]} 5...
Nc6 {[%clk 0:02:53.8]} 6. Nf3 {[%clk 0:02:46.4]} 6... Bg4 {[%clk 0:02:45.8]} 7.
Be2 {[%clk 0:02:46.4]} 7... dxc4 {[%clk 0:02:45]} 8. Bxc4 {[%clk 0:02:44.5]}
8... e6 {[%clk 0:02:06.4]} 9. d5 {[%clk 0:02:40.4]} 9... Bxf3 {[%clk 0:02:00.4]}
10. Qxf3 {[%clk 0:02:38]} 10... exd5 {[%clk 0:02:00.6]} 11. Nxd5 {[%clk
0:02:36.6]} 11... Nxd5 {[%clk 0:02:00.6]} 12. Qxd5 {[%clk 0:02:36.1]} 12... Bb4+
{[%clk 0:02:00.7]} 13. Bd2 {[%clk 0:02:25.5]} 13... Qe7+ {[%clk 0:01:48.6]} 14.
Kf1 {[%clk 0:02:04.9]} 14... Bxd2 {[%clk 0:01:26.5]} 15. Qxd2 {[%clk 0:01:56.7]}
15... O-O {[%clk 0:01:26.5]} 16. Re1 {[%clk 0:01:51.9]} 16... Qc5 {[%clk
0:01:26.6]} 17. Be2 {[%clk 0:01:46.9]} 17... Rad8 {[%clk 0:01:23.7]} 18. Qc3
{[%clk 0:01:46.4]} 18... Qxc3 {[%clk 0:01:21.6]} 19. bxc3 {[%clk 0:01:45.8]}
19... Rd2 {[%clk 0:01:22.3]} 20. a4 {[%clk 0:01:16.5]} 20... Rc2 {[%clk
0:01:09.5]} 21. c4 {[%clk 0:01:08.3]} 21... Rd8 {[%clk 0:01:06.2]} 22. Rd1
{[%clk 0:00:51.4]} 22... Rxd1+ {[%clk 0:01:03.7]} 23. Bxd1 {[%clk 0:00:51.2]}
23... Rxc4 {[%clk 0:01:04.4]} 24. Ke1 {[%clk 0:00:46.2]} 24... Rc1 {[%clk
0:00:59]} 25. Kd2 {[%clk 0:00:44.7]} 25... Ra1 {[%clk 0:00:59.2]} 26. Re1 {[%clk
0:00:44.1]} 26... Kf8 {[%clk 0:00:57.4]} 27. Bf3 {[%clk 0:00:33.8]} 27... Rxe1
{[%clk 0:00:56.1]} 28. Kxe1 {[%clk 0:00:34]} 28... Ke7 {[%clk 0:00:55.5]} 29.
Kd2 {[%clk 0:00:34.2]} 29... Kd6 {[%clk 0:00:55.8]} 30. Kd3 {[%clk 0:00:32.7]}
30... Ne5+ {[%clk 0:00:55.7]} 31. Ke4 {[%clk 0:00:30.9]} 31... Nxf3 {[%clk
0:00:56.6]} 32. Kxf3 {[%clk 0:00:30.8]} 32... b5 {[%clk 0:00:57]} 0-1

[Event "Late-Titled-Tuesday-Blitz-January-16-2024"]
[Site "Chess.com"]
[Date "2024.01.16"]
[Round "7"]
[White "giomar27"]
[Black "KSho99"]
[Result "1-0"]
[WhiteElo "2388"]
[BlackElo "2152"]
[TimeControl "180+1"]
[EndTime "15:16:17 PST"]
[Termination "giomar27 won on time"]

1. f3 {[%clk 0:03:00.9]} 1... d5 {[%clk 0:02:57.9]} 2. g3 {[%clk 0:03:01.3]}
2... e5 {[%clk 0:02:57.2]} 3. Nh3 {[%clk 0:03:02]} 3... Nf6 {[%clk 0:02:55.2]}
4. Nf2 {[%clk 0:03:02.6]} 4... h5 {[%clk 0:02:54.1]} 5. Bg2 {[%clk 0:03:01.5]}
5... h4 {[%clk 0:02:53.6]} 6. g4 {[%clk 0:03:01.8]} 6... Bd6 {[%clk 0:02:50.6]}
7. h3 {[%clk 0:03:01.9]} 7... c5 {[%clk 0:02:49]} 8. O-O {[%clk 0:03:01.8]} 8...
Nc6 {[%clk 0:02:48.4]} 9. d3 {[%clk 0:03:02]} 9... Be6 {[%clk 0:02:46.6]} 10. e4
{[%clk 0:03:02.2]} 10... d4 {[%clk 0:02:24.5]} 11. a4 {[%clk 0:03:01.6]} 11...
a6 {[%clk 0:02:07.8]} 12. Bg5 {[%clk 0:03:01.3]} 12... Rb8 {[%clk 0:02:02.9]}
13. Nd2 {[%clk 0:02:59]} 13... Bc7 {[%clk 0:01:51.5]} 14. b3 {[%clk 0:02:52.4]}
14... Ne7 {[%clk 0:01:50.5]} 15. Bxf6 {[%clk 0:02:44.5]} 15... gxf6 {[%clk
0:01:50.3]} 16. f4 {[%clk 0:02:45.4]} 16... exf4 {[%clk 0:01:43.7]} 17. Nf3
{[%clk 0:02:45.6]} 17... Ng6 {[%clk 0:01:34.1]} 18. Qd2 {[%clk 0:02:45.2]} 18...
Ba5 {[%clk 0:01:23.7]} 19. Qe2 {[%clk 0:02:44]} 19... Bc3 {[%clk 0:01:23.5]} 20.
Rab1 {[%clk 0:02:42.7]} 20... b5 {[%clk 0:01:22.3]} 21. axb5 {[%clk 0:02:42.6]}
21... axb5 {[%clk 0:01:22.3]} 22. e5 {[%clk 0:02:43.2]} 22... O-O {[%clk
0:01:10]} 23. exf6 {[%clk 0:02:38.9]} 23... Qxf6 {[%clk 0:01:09.7]} 24. Ne4
{[%clk 0:02:39.6]} 24... Qe7 {[%clk 0:01:01]} 25. g5 {[%clk 0:02:37]} 25... Kg7
{[%clk 0:00:50]} 26. Nf6 {[%clk 0:02:21.9]} 26... Rh8 {[%clk 0:00:43.7]} 27. Nh2
{[%clk 0:01:58]} 27... Bf5 {[%clk 0:00:19.7]} 28. Nh5+ {[%clk 0:01:49.6]} 28...
Rxh5 {[%clk 0:00:13.2]} 29. Qxh5 {[%clk 0:01:49.5]} 29... Qe3+ {[%clk
0:00:12.8]} 30. Kh1 {[%clk 0:01:49.8]} 30... Bxh3 {[%clk 0:00:06.6]} 31. Bxh3
{[%clk 0:01:34.6]} 31... Qxh3 {[%clk 0:00:06.4]} 32. Rf3 {[%clk 0:01:35.3]}
32... Qf5 {[%clk 0:00:02.5]} 33. Qh6+ {[%clk 0:01:36]} 33... Kg8 {[%clk
0:00:02.4]} 34. Rbf1 {[%clk 0:01:32.9]} 34... Re8 {[%clk 0:00:01.8]} 35. Rg1
{[%clk 0:01:28.7]} 35... Re2 {[%clk 0:00:01.3]} 36. Ng4 {[%clk 0:01:28.7]} 1-0

[Event "Late-Titled-Tuesday-Blitz-January-16-2024"]
[Site "Chess.com"]
[Date "2024.01.16"]
[Round "7"]
[White "Akhayan"]
[Black "Lennis93"]
[Result "0-1"]
[WhiteElo "2351"]
[BlackElo "2697"]
[TimeControl "180+1"]
[EndTime "15:16:21 PST"]
[Termination "Lennis93 won by resignation"]

1. e4 {[%clk 0:03:00.9]} 1... c5 {[%clk 0:02:56.4]} 2. Nf3 {[%clk 0:02:57.3]}
2... Nc6 {[%clk 0:02:56.9]} 3. Nc3 {[%clk 0:02:56.2]} 3... e6 {[%clk 0:02:55]}
4. d4 {[%clk 0:02:55.8]} 4... cxd4 {[%clk 0:02:55.9]} 5. Nxd4 {[%clk 0:02:55.6]}
5... Qc7 {[%clk 0:02:54.2]} 6. g3 {[%clk 0:02:54.9]} 6... a6 {[%clk 0:02:53.1]}
7. Bg2 {[%clk 0:02:55.2]} 7... Nf6 {[%clk 0:02:52.2]} 8. O-O {[%clk 0:02:55.7]}
8... Nxd4 {[%clk 0:02:52.6]} 9. Qxd4 {[%clk 0:02:55.5]} 9... Bc5 {[%clk
0:02:53.2]} 10. Bf4 {[%clk 0:02:56]} 10... d6 {[%clk 0:02:53.5]} 11. Qd2 {[%clk
0:02:52.6]} 11... h6 {[%clk 0:02:53.1]} 12. Rad1 {[%clk 0:02:51.8]} 12... e5
{[%clk 0:02:52.5]} 13. Be3 {[%clk 0:02:52.4]} 13... Bb4 {[%clk 0:02:52.7]} 14.
Nb5 {[%clk 0:02:51.7]} 14... axb5 {[%clk 0:02:52.9]} 15. Qxb4 {[%clk 0:02:50.9]}
15... Rxa2 {[%clk 0:02:52.8]} 16. Rxd6 {[%clk 0:02:28.2]} 16... Qc4 {[%clk
0:02:19.4]} 17. Qd2 {[%clk 0:01:55.1]} 17... O-O {[%clk 0:02:13.4]} 18. Rxf6
{[%clk 0:01:44.8]} 18... gxf6 {[%clk 0:02:09]} 19. Bxh6 {[%clk 0:01:44.8]} 19...
Re8 {[%clk 0:02:07.5]} 20. c3 {[%clk 0:01:24]} 20... Bg4 {[%clk 0:01:58.4]} 21.
h3 {[%clk 0:01:20.4]} 21... Bh5 {[%clk 0:01:56.9]} 22. Qd7 {[%clk 0:01:06.5]}
22... Qc6 {[%clk 0:01:55.2]} 23. Qd2 {[%clk 0:01:02]} 23... Bg6 {[%clk
0:01:52.7]} 24. Re1 {[%clk 0:00:57]} 24... b4 {[%clk 0:01:49.6]} 25. cxb4 {[%clk
0:00:55.7]} 25... Kh7 {[%clk 0:01:44.7]} 26. Be3 {[%clk 0:00:54.8]} 26... Bxe4
{[%clk 0:01:39.4]} 27. Bxe4+ {[%clk 0:00:47.1]} 27... Qxe4 {[%clk 0:01:40.3]}
28. Qd7 {[%clk 0:00:46.5]} 28... Rf8 {[%clk 0:01:36]} 29. Bd2 {[%clk 0:00:35.2]}
29... Qg6 {[%clk 0:01:31.5]} 30. Bc3 {[%clk 0:00:32.1]} 30... b6 {[%clk
0:01:24.3]} 31. Kh2 {[%clk 0:00:30]} 31... Rfa8 {[%clk 0:01:23.5]} 32. Rd1
{[%clk 0:00:22.7]} 32... Ra1 {[%clk 0:01:22.1]} 33. Rd6 {[%clk 0:00:21.7]} 33...
Kg8 {[%clk 0:01:12]} 34. Bxe5 {[%clk 0:00:21.2]} 34... Qe4 {[%clk 0:01:11.4]}
0-1

[Event "Late-Titled-Tuesday-Blitz-January-16-2024"]
[Site "Chess.com"]
[Date "2024.01.16"]
[Round "7"]
[White "ozates"]
[Black "ChessBrainiacOnTwitch"]
[Result "1-0"]
[WhiteElo "2606"]
[BlackElo "2791"]
[TimeControl "180+1"]
[EndTime "15:16:22 PST"]
[Termination "ozates won by checkmate"]

1. e4 {[%clk 0:03:00.9]} 1... c5 {[%clk 0:03:00]} 2. Nf3 {[%clk 0:03:01]} 2...
d6 {[%clk 0:03:00.6]} 3. Bb5+ {[%clk 0:02:59.7]} 3... Nd7 {[%clk 0:03:00.5]} 4.
O-O {[%clk 0:02:59.6]} 4... a6 {[%clk 0:03:00.8]} 5. Bd3 {[%clk 0:03:00.2]} 5...
b5 {[%clk 0:02:57.5]} 6. c4 {[%clk 0:02:53.6]} 6... bxc4 {[%clk 0:02:52.2]} 7.
Bxc4 {[%clk 0:02:53.8]} 7... Ngf6 {[%clk 0:02:48.1]} 8. Nc3 {[%clk 0:02:51.2]}
8... e6 {[%clk 0:02:47.6]} 9. d4 {[%clk 0:02:51.4]} 9... cxd4 {[%clk 0:02:46.6]}
10. Nxd4 {[%clk 0:02:51.6]} 10... Bb7 {[%clk 0:02:24.2]} 11. Re1 {[%clk
0:02:50.8]} 11... Qc7 {[%clk 0:02:20.4]} 12. Bxe6 {[%clk 0:02:42]} 12... fxe6
{[%clk 0:02:15.7]} 13. Nxe6 {[%clk 0:02:42.9]} 13... Qc6 {[%clk 0:01:59.8]} 14.
Nd5 {[%clk 0:02:37.9]} 14... Rc8 {[%clk 0:01:57.7]} 15. Bg5 {[%clk 0:02:35.4]}
15... Kf7 {[%clk 0:01:54.5]} 16. Rc1 {[%clk 0:02:28.1]} 16... Qb5 {[%clk
0:01:26.7]} 17. Rxc8 {[%clk 0:02:03.2]} 17... Bxc8 {[%clk 0:01:27.6]} 18. a4
{[%clk 0:01:28.1]} 18... Qxb2 {[%clk 0:01:20.8]} 19. Re2 {[%clk 0:01:13.3]}
19... Qe5 {[%clk 0:01:11]} 20. Nd8+ {[%clk 0:01:05.3]} 20... Kg8 {[%clk
0:00:33.1]} 21. f4 {[%clk 0:01:03.9]} 21... Qe8 {[%clk 0:00:30.8]} 22. Qb3
{[%clk 0:01:03.5]} 22... Qf7 {[%clk 0:00:01.1]} 23. Nxf7 {[%clk 0:01:01.6]}
23... Nc5 {[%clk 0:00:02]} 24. Nxf6+ {[%clk 0:00:56.2]} 24... gxf6 {[%clk
0:00:02.2]} 25. Nh6+ {[%clk 0:00:56.2]} 25... Kg7 {[%clk 0:00:01.7]} 26. Qf7#
{[%clk 0:00:57.1]} 1-0